bitfinex/quotes_SOLUSD_20250102
["timestamp","ask_amount","ask_price","bid_price","bid_amount"]
[1735776000465,6.0947,194.61,194.47,1.6661]
[1735776001319,6.0947,194.61,194.48,0.77097841]
[1735776002162,6.0947,194.61,194.49,11.47172309]
[1735776002717,6.0947,194.61,194.5,1.28962208]
[1735776003028,6.0947,194.61,194.5,11.47172309]
[1735776003325,6.0947,194.61,194.51,1.28962208]
[1735776003955,6.0947,194.61,194.52,1.28962208]
[1735776004773,6.0947,194.61,194.5,10.18210101]
[1735776005351,6.0947,194.61,194.51,1.2896365]
[1735776005762,14.83550157,194.66,194.51,1.2896365]
[1735776006055,14.83550157,194.66,194.52,11.47173751]
[1735776006244,14.83550157,194.66,194.52,12.24257355]
[1735776006438,6.7464,194.66,194.53,1.2896365]
[1735776007042,6.7464,194.66,194.54,1.2896365]
[1735776007758,6.7464,194.66,194.52,10.18210101]
[1735776008350,6.7464,194.66,194.53,11.47158257]
[1735776008722,6.7464,194.66,194.57,10.18210101]
[1735776009149,6.7464,194.66,194.58,10.95276105]
[1735776009959,6.7464,194.66,194.59,1.28909594]
[1735776010335,6.7464,194.66,194.6,0.77058454]
[1735776010533,6.7464,194.71,194.6,10.95268555]
[1735776011563,6.7464,194.71,194.61,10.18210101]
[1735776011735,6.7464,194.71,194.61,10.95258103]
[1735776012164,6.7464,194.71,194.62,1.28883196]
[1735776012971,6.7464,194.71,194.63,0.77044551]
[1735776013332,6.397,194.71,194.63,10.95254652]
[1735776013544,0.3494,194.75,194.64,10.18210101]
[1735776013862,0.3494,194.75,194.65,0.77033643]
[1735776014226,0.3494,194.75,194.65,10.95243744]
[1735776015338,16.17820357,194.85,194.69,10.18210101]
[1735776015648,8.08910157,194.85,194.73,10.18210101]
[1735776016568,6.7464,194.88,194.74,10.95215792]
[1735776016861,6.7464,194.88,194.74,0.77005691]
[1735776017170,6.7464,194.88,194.74,10.95215792]
[1735776018343,6.7464,194.88,194.75,10.18210101]
[1735776018770,6.7464,194.88,194.77,10.18210101]
[1735776020371,6.7464,194.88,194.76,10.95203594]
[1735776021075,6.7464,194.88,194.73,1.6039]
[1735776021953,6.7464,194.88,194.73,11.78600101]
[1735776022259,6.7464,194.88,194.73,1.6039]
[1735776022438,6.7464,194.88,194.73,11.78600101]
[1735776024236,6.7464,194.88,194.74,10.18210101]
[1735776024930,6.7464,194.88,194.75,10.18210101]
[1735776025136,6.7464,194.88,194.77,10.18210101]
[1735776025568,6.397,194.88,194.77,10.18210101]
[1735776025748,88.4284,194.93,194.78,10.18210101]
[1735776026251,88.4284,194.93,194.79,10.18210101]
[1735776027355,88.4284,194.93,194.8,10.18210101]
[1735776030975,6.9284,194.93,194.8,10.18210101]
[1735776034058,6.9284,194.93,194.81,10.95182321]
[1735776034262,6.9284,194.93,194.82,10.18210101]
[1735776034963,6.9284,194.93,194.81,12.49382321]
[1735776035167,6.9284,194.93,194.82,10.18210101]
[1735776036063,6.9284,194.93,194.83,10.18210101]
[1735776036251,6.5942,194.98,194.84,10.18210101]
[1735776036582,6.5942,194.98,194.85,10.18210101]
[1735776037973,5.1289,194.97,194.82,23.01440101]
[1735776038173,5.1289,194.97,194.83,10.18210101]
[1735776038541,5.1289,194.97,194.84,10.95175808]
[1735776040078,5.1289,194.97,194.85,10.18210101]
[1735776040388,5.1289,194.97,194.84,10.18210101]
[1735776040551,5.1289,194.97,194.85,10.18210101]
[1735776041549,5.1289,194.97,194.85,10.9516486]
[1735776045067,5.1289,194.97,194.86,10.18210101]
[1735776046465,5.1289,194.97,194.87,23.776884]
[1735776047770,5.1289,194.97,194.86,10.18210101]
[1735776047771,5.1289,194.97,194.86,33.95898501]
[1735776050878,6.5942,194.98,194.86,23.776884]
[1735776051068,6.5942,194.98,194.83,0.76951598]
[1735776051268,5.1289,194.97,194.81,11.72410101]
[1735776051793,5.1289,194.97,194.85,20.0]
[1735776052159,5.1297,194.95,194.81,1.542]
[1735776052393,20.0,194.92,194.81,1.542]
[1735776052550,6.7437,194.91,194.79,10.18210101]
[1735776052751,6.7437,194.91,194.77,0.76974729]
[1735776052974,6.7437,194.91,194.79,20.0]
[1735776053561,6.7437,194.91,194.77,23.776884]
[1735776053849,6.7437,194.91,194.76,30.18210101]
[1735776054072,6.7437,194.91,194.77,23.776884]
[1735776054355,6.7437,194.91,194.76,30.18210101]
[1735776055189,6.7437,194.91,194.8,20.0]
[1735776062389,20.0,194.88,194.74,0.76987315]
[1735776062593,20.0,194.88,194.76,10.18210101]
[1735776062797,20.0,194.87,194.74,10.18210101]
[1735776063181,20.0,194.87,194.73,11.73840101]
[1735776063372,20.0,194.87,194.73,1.5563]
[1735776063793,20.3494,194.83,194.74,1.28796576]
[1735776064302,20.3494,194.83,194.7,10.18210101]
[1735776064805,25.4821,194.83,194.69,43.776884]
[1735776065007,25.4821,194.83,194.71,1.28813791]
[1735776065500,25.4821,194.83,194.69,53.95898501]
[1735776066496,25.4821,194.83,194.7,1.28827759]
[1735776067203,20.0,194.78,194.69,23.776884]
[1735776068188,20.0,194.78,194.69,33.95898501]
[1735776068897,20.0,194.78,194.69,23.776884]
[1735776069098,6.125,194.82,194.74,33.95898501]
[1735776069901,6.125,194.82,194.75,23.776884]
[1735776070397,6.125,194.82,194.74,10.18210101]
[1735776070694,0.3494,194.83,194.75,10.18210101]
[1735776070995,20.0,194.84,194.76,23.776884]
[1735776071299,20.0,194.84,194.76,33.95898501]
[1735776071496,6.125,194.87,194.78,23.776884]
[1735776072494,6.125,194.92,194.8,33.95898501]
[1735776073301,6.125,194.92,194.8,23.776884]
[1735776079406,20.0,194.89,194.77,20.0]
[1735776079588,20.0,194.88,194.76,2.32186498]
[1735776079906,20.0,194.88,194.76,1.552]
[1735776080409,20.0,194.88,194.78,20.0]
[1735776081116,20.0,194.88,194.77,20.0]
[1735776081288,20.0,194.88,194.78,20.0]
[1735776081994,20.0,194.88,194.77,23.776884]
[1735776082295,20.0,194.88,194.77,24.54673836]
[1735776084905,20.0,194.88,194.77,34.72883937]
[1735776085109,20.0,194.88,194.79,23.776884]
[1735776085309,20.0,194.88,194.79,24.54669379]
[1735776085518,20.0,194.88,194.79,34.7287948]
[1735776085909,20.0,194.88,194.79,24.54669379]
[1735776086100,20.0,194.88,194.79,23.776884]
[1735776086791,20.0,194.88,194.79,10.18210101]
[1735776086992,20.0,194.88,194.79,10.95191116]
[1735776087301,5.1305,194.91,194.79,10.95191116]
[1735776091612,6.125,194.92,194.83,23.776884]
[1735776091791,6.125,194.92,194.83,24.54653124]
[1735776093396,6.125,194.92,194.81,20.76968972]
[1735776093820,6.125,194.92,194.81,0.76968972]
[1735776094313,6.125,194.92,194.82,23.776884]
[1735776097403,6.125,194.92,194.83,0.76964858]
[1735776097815,89.58910157,195.0,194.86,23.776884]
[1735776097816,11.5279,194.97,194.86,23.776884]
[1735776097999,11.5279,194.97,194.86,24.54640955]
[1735776100910,5.4794,194.93,194.79,7.55030906]
[1735776101108,5.4794,194.93,194.79,2.27631652]
[1735776101316,6.5783,194.92,194.8,20.0]
[1735776101691,24.126284,194.88,194.79,0.76951652]
[1735776101896,20.0,194.84,194.72,8.11216647]
[1735776102198,20.0,194.84,194.73,20.0]
[1735776102395,20.0,194.84,194.74,20.0]
[1735776102797,20.0,194.84,194.72,20.0]
[1735776103004,20.0,194.84,194.73,20.0]
[1735776104138,20.0,194.84,194.74,20.0]
[1735776105027,20.0,194.84,194.73,20.0]
[1735776105835,20.0,194.84,194.74,20.0]
[1735776107521,6.5783,194.87,194.75,23.776884]
[1735776109634,6.5783,194.87,194.76,0.76991174]
[1735776112027,6.5783,194.87,194.75,23.776884]
[1735776117335,6.5783,194.87,194.75,24.54683593]
[1735776117636,6.50578592,194.87,194.75,24.54683593]
[1735776118840,6.50578592,194.87,194.75,34.72893694]
[1735776119838,6.50578592,194.87,194.76,1.28787276]
[1735776120427,6.50578592,194.87,194.75,24.54683593]
[1735776120841,6.50578592,194.87,194.77,23.776884]
[1735776121024,6.50578592,194.87,194.79,23.776884]
[1735776125042,6.50578592,194.87,194.75,2.39983649]
[1735776125212,6.50578592,194.87,194.77,20.0]
[1735776125414,6.50578592,194.87,194.76,23.776884]
[1735776129613,6.50578592,194.87,194.71,1.6003]
[1735776129845,6.50578592,194.87,194.72,0.77006212]
[1735776130145,9.98336501,194.92,194.72,1.28794663]
[1735776130146,20.0,194.83,194.72,1.28794663]
[1735776130330,6.7178,194.82,194.72,1.28794663]
[1735776130953,6.7178,194.82,194.71,20.0]
[1735776130954,6.7178,194.82,194.73,1.28794663]
[1735776131529,6.7178,194.82,194.74,1.28794663]
[1735776132255,6.7178,194.82,194.71,20.0]
[1735776132652,6.7178,194.82,194.72,20.0]
[1735776132855,6.7178,194.82,194.73,20.0]
[1735776133741,6.7178,194.82,194.74,1.28796032]
[1735776134456,6.7178,194.82,194.75,1.28796032]
[1735776134947,6.7178,194.82,194.74,23.776884]
[1735776135448,6.7178,194.82,194.67,14.950538]
[1735776135665,6.7178,194.82,194.69,23.776884]
[1735776135959,6.7178,194.82,194.72,20.0]
[1735776136842,6.7178,194.82,194.73,1.28813165]
[1735776137261,6.7178,194.82,194.72,20.0]
[1735776137434,6.7178,194.82,194.73,23.776884]
[1735776137636,6.7178,194.82,194.74,20.0]
[1735776139154,6.3684,194.82,194.74,20.0]
[1735776141132,6.3684,194.82,194.72,23.776884]
[1735776141567,6.3684,194.82,194.73,1.28806419]
[1735776142274,6.3684,194.82,194.72,23.776884]
[1735776142436,6.3684,194.82,194.72,20.0]
[1735776144337,6.3684,194.82,194.73,1.28809897]
[1735776144541,6.3684,194.82,194.73,2.05815748]
[1735776144753,6.3684,194.82,194.73,22.05815748]
[1735776145257,6.3684,194.82,194.74,1.28809897]
[1735776145639,6.3684,194.82,194.73,20.77005851]
[1735776147234,6.3684,194.82,194.74,1.28805254]
[1735776148135,6.3684,194.82,194.75,1.28805254]
[1735776149031,6.3684,194.82,194.74,20.0]
[1735776150641,6.3684,194.82,194.75,1.28804561]
[1735776151539,6.3684,194.82,194.74,20.0]
[1735776152965,6.3684,194.82,194.75,1.2880522]
[1735776153462,6.3684,194.82,194.74,20.0]
[1735776155265,6.3684,194.82,194.75,1.28804561]
[1735776156165,6.3684,194.82,194.74,20.0]
[1735776157571,6.3684,194.82,194.75,21.2880522]
[1735776157863,0.3494,194.85,194.76,23.776884]
[1735776158050,0.3494,194.85,194.77,0.76988732]
[1735776158643,0.3494,194.85,194.76,23.776884]
[1735776159366,0.3494,194.85,194.77,1.28788947]
[1735776159971,0.3494,194.85,194.76,23.776884]
[1735776161343,0.3494,194.85,194.77,1.2878763]
[1735776162061,0.3494,194.85,194.78,23.776884]
[1735776162585,0.3494,194.85,194.79,1.2877841]
[1735776163291,0.3494,194.85,194.78,23.776884]
[1735776163482,6.284,194.87,194.78,23.776884]
[1735776165149,0.3494,194.9,194.82,23.776884]
[1735776165350,14.37310157,194.92,194.84,33.95898501]
[1735776165579,14.37310157,194.92,194.85,10.95163802]
[1735776165758,14.37310157,194.92,194.85,0.76953701]
[1735776166161,6.284,194.92,194.85,0.76953701]
[1735776167471,6.284,194.92,194.85,10.95163802]
[1735776167980,6.284,194.97,194.93,20.0]
[1735776168279,14.18082847,195.0,194.94,0.76931655]
[1735776168280,8.08910157,195.0,194.94,0.76931655]
[1735776168460,14.37310157,195.0,194.88,1.5202]
[1735776168662,5.4778,194.99,194.95,1.28662268]
[1735776168971,14.37310157,195.0,194.95,1.28662268]
[1735776169277,6.284,195.0,194.95,1.28662268]
[1735776169453,0.3494,195.04,194.92,10.18210101]
[1735776169454,6.6334,195.04,194.92,10.18210101]
[1735776169648,6.6334,195.04,194.92,0.76923742]
[1735776169862,23.776884,195.03,194.91,1.28662268]
[1735776170078,23.776884,195.03,194.88,10.18210101]
[1735776170274,23.776884,195.03,194.91,20.0]
[1735776170653,23.776884,195.03,194.88,10.18210101]
[1735776170654,28.904284,195.03,194.88,10.18210101]
[1735776170855,28.904284,195.03,194.87,11.46872369]
[1735776171278,28.904284,195.03,194.87,10.18210101]
[1735776171482,28.904284,195.03,194.9,20.0]
[1735776172282,28.904284,195.03,194.89,20.0]
[1735776172785,28.904284,195.03,194.87,10.18210101]
[1735776172961,23.776884,194.99,194.81,17.45197745]
[1735776173167,6.2268,194.98,194.84,10.18210101]
[1735776173365,6.2268,194.98,194.87,20.0]
[1735776173681,23.776884,194.97,194.83,10.18210101]
[1735776173858,23.776884,194.97,194.86,20.0]
[1735776174571,20.0,194.94,194.78,0.76967727]
[1735776174880,23.776884,194.93,194.78,10.18210101]
[1735776175182,23.776884,194.93,194.79,10.18210101]
[1735776175479,20.0,194.93,194.79,10.18210101]
[1735776175777,25.1301,194.93,194.79,10.18210101]
[1735776175984,23.776884,194.92,194.81,20.0]
[1735776176172,6.2268,194.91,194.81,20.0]
[1735776176895,6.2268,194.91,194.77,11.68970101]
[1735776177179,6.2268,194.91,194.78,10.18210101]
[1735776177686,6.2268,194.91,194.77,11.68970101]
[1735776178187,6.2268,194.91,194.8,20.0]
[1735776178366,6.2268,194.91,194.77,11.68970101]
[1735776178680,23.776884,194.9,194.77,11.68970101]
[1735776178866,23.776884,194.9,194.77,1.5076]
[1735776179480,23.776884,194.9,194.76,30.18210101]
[1735776180579,28.907784,194.9,194.78,20.0]
[1735776180779,28.907784,194.9,194.72,7.8299]
[1735776180780,20.0,194.87,194.72,7.8299]
[1735776181078,20.0,194.87,194.74,10.18210101]
[1735776181381,23.776884,194.86,194.72,11.68970101]
[1735776182787,23.776884,194.84,194.72,10.18210101]
[1735776182958,23.776884,194.84,194.74,20.0]
[1735776184191,23.776884,194.84,194.72,10.18210101]
[1735776186498,20.0,194.81,194.7,0.77016186]
[1735776186664,44.126284,194.8,194.68,10.18210101]
[1735776188560,44.126284,194.8,194.67,10.18210101]
[1735776188778,23.776884,194.78,194.66,10.18210101]
[1735776189771,23.776884,194.78,194.67,10.18210101]
[1735776189974,6.1105,194.79,194.69,10.18210101]
[1735776191766,6.1105,194.79,194.7,10.18210101]
[1735776191963,20.3494,194.8,194.73,10.18210101]
[1735776191964,0.3494,194.8,194.73,10.18210101]
[1735776192304,6.4599,194.84,194.74,10.18210101]
[1735776192507,6.4599,194.84,194.75,10.18210101]
[1735776192799,6.4599,194.84,194.76,10.18210101]
[1735776193106,6.4599,194.84,194.75,10.18210101]
[1735776195907,6.4599,194.84,194.76,10.18210101]
[1735776196269,0.3494,194.88,194.78,10.18210101]
[1735776199081,0.3494,194.88,194.77,10.18210101]
[1735776199512,24.126284,194.88,194.74,20.0]
[1735776199701,20.0,194.85,194.74,30.18210101]
[1735776199878,20.0,194.85,194.74,20.0]
[1735776201397,20.0,194.84,194.72,10.18210101]
[1735776201802,20.0,194.84,194.74,20.0]
[1735776208312,23.776884,194.83,194.74,20.0]
[1735776208807,6.5925,194.82,194.7,12.8396]
[1735776209100,6.5925,194.82,194.71,10.18210101]
[1735776210205,6.5925,194.82,194.7,23.02170101]
[1735776210206,0.3494,194.81,194.7,23.02170101]
[1735776211109,0.3494,194.81,194.7,10.18210101]
[1735776211494,24.126284,194.81,194.69,30.18210101]
[1735776212215,24.126284,194.81,194.7,10.18210101]
[1735776214405,24.126284,194.81,194.69,30.18210101]
[1735776217822,24.126284,194.81,194.7,10.18210101]
[1735776218791,0.3494,194.81,194.7,10.18210101]
[1735776218993,0.3494,194.81,194.71,10.18210101]
[1735776220216,0.3494,194.81,194.7,10.18210101]
[1735776220600,0.3494,194.81,194.71,1.28822663]
[1735776221105,24.126284,194.81,194.71,1.28822663]
[1735776221730,24.126284,194.81,194.69,30.18210101]
[1735776221909,24.126284,194.81,194.7,10.18210101]
[1735776222223,24.126284,194.81,194.69,30.18210101]
[1735776222935,24.126284,194.81,194.7,10.18210101]
[1735776223430,24.126284,194.81,194.7,11.47040651]
[1735776223820,24.126284,194.81,194.7,1.2883055]
[1735776224002,24.126284,194.81,194.69,30.18210101]
[1735776225529,24.126284,194.81,194.7,1.28830354]
[1735776225904,24.126284,194.81,194.71,20.0]
[1735776226099,24.126284,194.81,194.68,10.18210101]
[1735776226314,24.126284,194.81,194.67,11.68910101]
[1735776226500,24.126284,194.81,194.66,10.18210101]
[1735776226696,24.126284,194.81,194.68,1.28844409]
[1735776227237,23.776884,194.79,194.68,1.28844409]
[1735776227409,23.776884,194.79,194.66,10.18210101]
[1735776228234,23.776884,194.79,194.67,1.28850092]
[1735776228731,23.776884,194.79,194.66,10.18210101]
[1735776230245,23.776884,194.79,194.67,1.28849888]
[1735776230807,6.3943,194.8,194.7,10.18210101]
[1735776231239,6.3943,194.8,194.69,30.18210101]
[1735776231945,6.3943,194.8,194.7,10.18210101]
[1735776232524,6.3943,194.8,194.71,10.95225577]
[1735776232847,6.3943,194.8,194.72,10.18210101]
[1735776233147,6.3943,194.8,194.74,10.18210101]
[1735776233307,0.3494,194.81,194.74,10.18210101]
[1735776234403,6.6593,194.85,194.76,10.18210101]
[1735776234624,6.6593,194.85,194.77,10.18210101]
[1735776235234,6.6593,194.85,194.75,30.95206103]
[1735776236129,6.6593,194.85,194.75,30.18210101]
[1735776236630,6.6593,194.85,194.76,1.28790865]
[1735776236813,23.776884,194.84,194.76,1.28790865]
[1735776237146,23.776884,194.8,194.66,9.63456647]
[1735776237324,23.776884,194.8,194.68,10.18210101]
[1735776237733,43.776884,194.81,194.68,10.18210101]
[1735776238028,43.776884,194.81,194.69,1.28833163]
[1735776238419,43.776884,194.81,194.69,11.47043264]
[1735776238621,43.776884,194.81,194.69,10.18210101]
[1735776238817,43.776884,194.81,194.7,10.18210101]
[1735776239152,5.1324,194.84,194.71,10.18210101]
[1735776239534,23.776884,194.83,194.71,10.18210101]
[1735776241433,5.1324,194.84,194.71,10.18210101]
[1735776241839,5.1324,194.84,194.72,10.18210101]
[1735776242039,5.1324,194.84,194.71,20.0]
[1735776242741,5.1324,194.84,194.71,30.18210101]
[1735776242916,5.1324,194.84,194.72,1.28819205]
[1735776243429,23.776884,194.83,194.71,20.0]
[1735776244720,23.776884,194.83,194.72,1.28819335]
[1735776245441,23.776884,194.83,194.71,20.0]
[1735776246020,5.1324,194.84,194.66,1.5224]
[1735776246021,23.776884,194.79,194.66,1.5224]
[1735776246215,23.776884,194.77,194.61,23.32125256]
[1735776246417,20.0,194.74,194.61,19.88696748]
[1735776246615,20.0,194.74,194.64,20.0]
[1735776247231,23.776884,194.73,194.65,1.28854078]
[1735776247724,23.776884,194.73,194.6,10.18210101]
[1735776248442,23.776884,194.73,194.61,1.28886528]
[1735776249339,23.776884,194.73,194.6,10.18210101]
[1735776250921,23.776884,194.73,194.61,10.18210101]
[1735776251648,23.776884,194.73,194.6,30.18210101]
[1735776253928,20.0,194.7,194.6,30.18210101]
[1735776254133,0.3494,194.69,194.58,20.0]
[1735776254857,0.3494,194.69,194.58,30.18210101]
[1735776255754,0.3494,194.69,194.59,10.18210101]
[1735776256929,24.126284,194.69,194.56,2.36329305]
[1735776257123,20.0,194.66,194.53,4.60456782]
[1735776257353,23.776884,194.65,194.53,10.18210101]
[1735776257523,23.776884,194.65,194.54,1.28913412]
[1735776258068,6.2119,194.64,194.54,1.28913412]
[1735776258253,6.2119,194.64,194.52,10.18210101]
[1735776258422,23.776884,194.63,194.51,13.06393513]
[1735776258624,0.3494,194.62,194.51,11.47123513]
[1735776258953,0.3494,194.62,194.51,10.18210101]
[1735776260121,0.3494,194.62,194.5,2.06003145]
[1735776260122,0.3494,194.62,194.5,12.24213246]
[1735776260325,0.3494,194.62,194.5,11.47123513]
[1735776260963,0.3494,194.62,194.5,10.18210101]
[1735776262065,0.3494,194.62,194.51,10.18210101]
[1735776262838,0.3494,194.62,194.52,30.18210101]
[1735776263053,0.3494,194.62,194.52,20.0]
[1735776265333,0.3494,194.62,194.5,10.18210101]
[1735776267586,20.0,194.55,194.34,78.70185957]
[1735776267755,30.246084,194.54,194.4,10.18210101]
[1735776267949,30.246084,194.54,194.43,20.0]
[1735776268886,30.246084,194.54,194.45,20.0]
[1735776268887,6.4692,194.54,194.45,20.0]
[1735776269346,6.4692,194.54,194.42,12.8586]
[1735776269550,6.4692,194.54,194.42,23.04070101]
[1735776270290,6.4692,194.54,194.41,18.25155573]
[1735776270783,6.4692,194.54,194.41,15.92167095]
[1735776271151,6.4692,194.54,194.42,35.92167095]
[1735776272674,6.4692,194.54,194.42,20.0]
[1735776272879,20.0,194.51,194.4,15.92167095]
[1735776275598,24.126284,194.5,194.4,15.92167095]
[1735776275993,24.126284,194.5,194.38,35.92167095]
[1735776276197,24.126284,194.5,194.36,15.92167095]
[1735776276198,23.776884,194.48,194.36,15.92167095]
[1735776276493,23.776884,194.48,194.38,20.0]
[1735776278305,20.0,194.45,194.33,15.92167095]
[1735776278673,0.3494,194.43,194.32,16.69334191]
[1735776280818,0.3494,194.43,194.32,15.92167095]
[1735776281317,6.2582,194.42,194.31,15.92167095]
[1735776282519,6.2582,194.42,194.3,29.55945418]
[1735776282807,6.2582,194.42,194.33,20.0]
[1735776283303,6.2582,194.42,194.3,28.78777095]
[1735776283800,23.776884,194.41,194.29,15.92167095]
[1735776284010,23.776884,194.41,194.27,2.29829367]
[1735776284171,23.776884,194.41,194.29,20.0]
[1735776284585,23.776884,194.41,194.29,15.92167095]
[1735776285187,23.776884,194.41,194.28,13.63977617]
[1735776285503,23.776884,194.41,194.28,15.92167095]
[1735776285809,23.776884,194.41,194.27,15.92167095]
[1735776286181,24.126284,194.37,194.24,0.77186589]
[1735776286511,6.2582,194.36,194.26,15.92167095]
[1735776287079,6.2582,194.36,194.24,0.77196661]
[1735776287298,6.2582,194.36,194.23,14.3972]
[1735776287505,6.2582,194.36,194.24,15.92167095]
[1735776287881,6.2582,194.36,194.26,15.92167095]
[1735776288435,29.93896128,194.35,194.22,15.92167095]
[1735776288638,29.93896128,194.35,194.25,20.0]
[1735776289442,6.16207728,194.35,194.25,20.0]
[1735776289744,6.2582,194.36,194.27,15.92167095]
[1735776290322,6.2582,194.36,194.26,20.0]
[1735776290705,6.2582,194.36,194.26,35.92167095]
[1735776291551,6.2582,194.36,194.28,15.92167095]
[1735776291852,6.2582,194.36,194.29,16.69353781]
[1735776292250,6.4219,194.41,194.32,10.20133994]
[1735776293039,6.4219,194.41,194.33,10.97301504]
[1735776293910,6.4219,194.41,194.34,20.0]
[1735776294110,6.4219,194.41,194.33,10.20133994]
[1735776294313,6.4219,194.41,194.34,20.0]
[1735776294832,23.776884,194.4,194.27,14.4302]
[1735776295057,23.776884,194.4,194.26,15.93703662]
[1735776295211,20.0,194.37,194.24,17.22794423]
[1735776295969,20.0,194.37,194.24,17.99994716]
[1735776296143,20.0,194.37,194.27,20.0]
[1735776296636,23.776884,194.34,194.25,1.29090761]
[1735776297266,23.776884,194.34,194.22,1.29090761]
[1735776298261,23.776884,194.34,194.21,17.22794423]
[1735776298630,23.776884,194.34,194.21,1.29090761]
[1735776300325,20.0,194.31,194.21,1.29090761]
[1735776300657,0.3494,194.28,194.21,1.29090761]
[1735776301026,0.3494,194.28,194.18,1.29090761]
[1735776301027,24.126284,194.28,194.18,1.29090761]
[1735776301262,20.0,194.25,194.18,1.29090761]
[1735776301771,20.0,194.25,194.14,15.93703662]
[1735776302066,0.3494,194.28,194.16,15.93703662]
[1735776302361,20.0,194.26,194.15,15.93703662]
[1735776302736,0.3494,194.28,194.16,15.93703662]
[1735776302961,0.3494,194.28,194.17,35.93703662]
[1735776303386,0.3494,194.28,194.17,20.0]
[1735776303546,0.3494,194.28,194.18,15.93703662]
[1735776304147,0.3494,194.28,194.2,15.93703662]
[1735776304351,6.1259,194.29,194.21,15.93703662]
[1735776304987,6.1259,194.29,194.2,15.93703662]
[1735776307688,23.776884,194.28,194.18,1.29141779]
[1735776308566,23.776884,194.28,194.16,15.93703662]
[1735776308749,23.776884,194.28,194.17,15.93703662]
[1735776308954,23.776884,194.28,194.16,15.93703662]
[1735776309358,23.776884,194.28,194.15,15.93703662]
[1735776309558,23.776884,194.28,194.16,15.93703662]
[1735776309874,23.776884,194.28,194.19,15.93703662]
[1735776310172,6.1259,194.29,194.21,20.0]
[1735776310358,6.1259,194.29,194.21,15.93703662]
[1735776310555,23.776884,194.28,194.19,15.93703662]
[1735776312173,6.1259,194.29,194.2,15.93703662]
[1735776312790,6.1259,194.29,194.2,17.22845441]
[1735776313173,6.1259,194.29,194.2,1.29141779]
[1735776313954,23.776884,194.28,194.18,15.93703662]
[1735776314454,23.776884,194.28,194.16,35.93703662]
[1735776314757,23.776884,194.28,194.18,20.0]
[1735776314970,0.3494,194.27,194.18,20.0]
[1735776315180,0.3494,194.27,194.15,15.93703662]
[1735776315472,23.776884,194.24,194.13,15.93703662]
[1735776315674,23.776884,194.24,194.12,15.93703662]
[1735776315995,6.4667,194.23,194.12,17.22901885]
[1735776316295,23.776884,194.22,194.12,17.22901885]
[1735776316709,23.776884,194.22,194.12,15.93703662]
[1735776316864,23.776884,194.22,194.11,17.22901885]
[1735776317055,23.776884,194.22,194.14,15.93703662]
[1735776317387,6.4667,194.23,194.14,15.93703662]
[1735776317693,6.4667,194.23,194.13,15.93703662]
[1735776318262,23.776884,194.22,194.13,15.93703662]
[1735776318454,23.776884,194.22,194.12,17.22906558]
[1735776318883,23.776884,194.22,194.12,15.93703662]
[1735776322569,6.4667,194.23,194.13,15.93703662]
[1735776322789,6.4667,194.23,194.18,15.93703662]
[1735776322980,6.7703,194.27,194.18,15.93703662]
[1735776323167,23.776884,194.26,194.17,15.93703662]
[1735776323783,6.7703,194.27,194.17,15.93703662]
[1735776324195,23.776884,194.26,194.16,15.93703662]
[1735776324574,23.776884,194.26,194.17,15.93703662]
[1735776324762,6.7703,194.27,194.17,15.93703662]
[1735776325169,23.776884,194.26,194.16,15.93703662]
[1735776325399,23.776884,194.26,194.15,15.93703662]
[1735776326312,28.924684,194.26,194.14,1.29187184]
[1735776326870,28.924684,194.26,194.12,15.93703662]
[1735776327597,28.924684,194.26,194.14,15.93703662]
[1735776327897,28.924684,194.26,194.15,15.93703662]
[1735776328196,28.924684,194.26,194.14,15.93703662]
[1735776328896,28.924684,194.26,194.13,35.93703662]
[1735776329478,28.924684,194.26,194.14,15.93703662]
[1735776330401,28.924684,194.26,194.13,35.93703662]
[1735776330602,28.924684,194.26,194.14,15.93703662]
[1735776330898,23.776884,194.26,194.15,15.93703662]